bitfinex/quotes_SOLUSD_20251030
["timestamp","ask_amount","ask_price","bid_price","bid_amount"]
[1761840589594,5.52471043,185.93,185.89,0.7]
[1761840589780,11.62,185.94,185.89,0.7]
[1761840589964,5.52471043,185.94,185.89,0.7]
[1761840590286,5.52471043,185.95,185.89,6.22471043]
[1761840590465,5.52471043,185.96,185.89,0.7]
[1761840590663,5.52471043,185.94,185.9,0.7]
[1761840591181,5.52471043,185.92,185.88,0.7]
[1761840591377,5.76153451,185.97,185.88,0.7]
[1761840591686,5.52471043,185.92,185.88,0.7]
[1761840591887,5.52471043,185.92,185.88,6.07981328]
[1761840592087,5.52471043,185.93,185.88,6.07981328]
[1761840592292,5.52471043,185.93,185.89,0.7]
[1761840593090,5.52471043,185.92,185.89,0.7]
[1761840593496,5.37823465,185.94,185.89,0.7]
[1761840593497,5.52471043,185.93,185.89,0.7]
[1761840593986,5.37823465,185.94,185.89,0.7]
[1761840594192,5.52471043,185.93,185.89,0.7]
[1761840594674,5.52471043,185.92,185.89,0.7]
[1761840595077,5.52471043,185.93,185.89,0.7]
[1761840595578,5.47697074,185.98,185.9,0.7]
[1761840595897,5.52471043,185.95,185.9,67.92471043]
[1761840596189,5.52471043,185.93,185.9,62.4]
[1761840596771,5.52471043,185.93,185.91,0.7]
[1761840597089,5.52471043,185.94,185.91,0.7]
[1761840597979,11.62,185.99,185.91,6.22471043]
[1761840598164,11.62,185.99,185.91,62.4]
[1761840598165,5.52471043,185.96,185.91,62.4]
[1761840598482,11.72,185.99,185.91,62.4]
[1761840598483,5.52471043,185.95,185.91,62.4]
[1761840598802,5.52471043,185.96,185.91,62.4]
[1761840599166,11.72,185.99,185.91,62.4]
[1761840599167,5.52471043,185.94,185.91,62.4]
[1761840599372,5.52471043,185.94,185.91,0.7]
[1761840599574,5.52471043,185.93,185.88,67.92471043]
[1761840599787,5.52471043,185.93,185.88,62.4]
[1761840600096,5.52471043,185.93,185.89,0.7]
[1761840600299,5.52471043,185.92,185.89,0.7]
[1761840600989,10.90316432,185.93,185.89,0.7]
[1761840601177,5.52471043,185.93,185.89,0.7]
[1761840601375,11.6,185.94,185.89,0.7]
[1761840601586,11.6,185.95,185.89,0.7]
[1761840601762,5.52471043,185.94,185.89,0.7]
[1761840602191,5.52471043,185.94,185.89,6.22471043]
[1761840602567,5.52471043,185.94,185.9,0.7]
[1761840602790,16.97800087,185.95,185.9,0.7]
[1761840602791,5.37800087,185.95,185.9,0.7]
[1761840603003,5.52471043,185.94,185.9,0.7]
[1761840603706,2.26838751,185.93,185.88,61.7]
[1761840604009,0.28432314,185.94,185.88,0.7]
[1761840604298,2.16838751,185.92,185.88,0.7]
[1761840604694,11.6,185.93,185.88,0.7]
[1761840605007,2.16838751,185.96,185.91,2.16838751]
[1761840605311,2.16838751,185.93,185.88,0.7]
[1761840605474,2.16838751,185.92,185.87,2.16838751]
[1761840605675,2.16838751,185.93,185.88,2.86838751]
[1761840606075,2.16838751,185.94,185.89,2.86838751]
[1761840606275,0.38432314,185.99,185.9,2.16838751]
[1761840606276,11.6,185.95,185.9,2.16838751]
[1761840606497,11.6,185.95,185.9,2.86838751]
[1761840606498,13.76838751,185.95,185.9,2.86838751]
[1761840606701,2.16838751,185.95,185.91,0.7]
[1761840606987,16.97744794,185.97,185.91,0.7]
[1761840607183,2.16838751,185.97,185.91,8.24708664]
[1761840607397,19.14539096,185.98,185.92,2.16838751]
[1761840607599,19.14539096,185.98,185.92,2.86838751]
[1761840607802,2.16838751,185.97,185.92,2.86838751]
[1761840608004,11.6,185.98,185.92,2.86838751]
[1761840608204,11.6,185.98,185.91,5.37869913]
[1761840608205,2.16838751,185.99,185.93,2.86838751]
[1761840608509,11.6,185.98,185.93,2.86838751]
[1761840608803,13.76838751,185.98,185.93,0.7]
[1761840609301,17.11916641,185.98,185.93,0.7]
[1761840609604,11.6,185.98,185.93,6.0783146]
[1761840609785,17.11916641,185.98,185.93,6.0783146]
[1761840609981,17.11916641,185.98,185.94,0.67]
[1761840610181,11.6,185.98,185.94,0.67]
[1761840610394,17.11916641,185.99,185.94,0.67]
[1761840610719,17.11916641,185.99,185.89,32.192]
[1761840610720,5.51916641,185.98,185.92,6.18916641]
[1761840610884,5.51916641,185.98,185.92,5.51916641]
[1761840611087,5.51916641,185.98,185.93,0.67]
[1761840611408,10.8963518,185.98,185.92,5.51916641]
[1761840611587,10.8963518,185.98,185.92,0.67]
[1761840611782,10.8963518,185.98,185.93,0.67]
[1761840612183,10.8963518,185.98,185.84,59.78882769]
[1761840612184,0.28432314,185.93,185.87,5.51916641]
[1761840612409,5.51916641,185.94,185.85,0.67]
[1761840612410,5.51916641,185.9,185.85,0.67]
[1761840612989,11.6,185.92,185.82,0.67]
[1761840612990,0.1,185.89,185.82,0.67]
[1761840613190,5.51916641,185.87,185.82,6.18916641]
[1761840613408,11.6,185.87,185.82,6.18916641]
[1761840613600,11.6,185.87,185.83,6.18916641]
[1761840614143,16.98010929,185.87,185.83,6.18916641]
[1761840614502,16.98010929,185.87,185.83,0.67]
[1761840614808,16.98010929,185.87,185.83,6.18916641]
[1761840615002,11.6,185.87,185.83,6.18916641]
[1761840615513,11.6,185.87,185.84,0.71]
[1761840616391,11.6,185.87,185.84,6.22916641]
[1761840616594,5.51916641,185.9,185.84,0.71]
[1761840616898,5.51916641,185.86,185.74,16.3467173]
[1761840617224,17.11916641,185.85,185.79,6.22916641]
[1761840617420,17.11916641,185.85,185.8,5.51916641]
[1761840617618,5.38097287,185.84,185.8,5.51916641]
[1761840617950,17.11916641,185.85,185.81,0.71]
[1761840618150,22.499951,185.85,185.81,0.71]
[1761840618449,11.6,185.85,185.81,6.22916641]
[1761840618751,16.98088726,185.85,185.81,6.22916641]
[1761840618956,5.61916641,185.84,185.78,5.51916641]
[1761840619175,5.51916641,185.83,185.76,0.71]
[1761840619443,16.98088726,185.85,185.76,5.51916641]
[1761840619641,16.98088726,185.85,185.77,6.22916641]
[1761840619642,5.51916641,185.83,185.77,6.22916641]
[1761840619862,0.38432314,185.84,185.7,16.2129229]
[1761840620143,0.38432314,185.84,185.69,0.91]
[1761840620144,9.78882769,185.81,185.69,0.91]
[1761840620320,5.51916641,185.76,185.7,6.22916641]
[1761840620521,5.51916641,185.75,185.7,0.71]
[1761840620836,5.51916641,185.73,185.69,0.2]
[1761840621226,5.51916641,185.72,185.69,0.2]
[1761840621626,11.6,185.71,185.69,0.2]
[1761840621846,11.6,185.71,185.69,0.91]
[1761840622157,5.51916641,185.7,185.69,0.2]
[1761840623040,11.7,185.71,185.69,0.2]
[1761840623245,5.80348955,185.7,185.69,0.2]
[1761840623553,5.90348955,185.7,185.69,0.2]
[1761840623727,11.28851916,185.7,185.69,0.2]
[1761840624551,22.78851916,185.7,185.69,0.2]
[1761840624732,32.67734685,185.7,185.69,0.2]
[1761840625563,21.77315083,185.7,185.69,0.2]
[1761840625734,32.67734685,185.7,185.69,0.2]
[1761840626348,21.07734685,185.7,185.69,0.2]
[1761840626542,22.78851916,185.7,185.69,0.2]
[1761840627126,17.40348955,185.7,185.69,0.2]
[1761840627751,22.78851916,185.7,185.69,0.2]
[1761840628338,17.11916641,185.7,185.69,0.2]
[1761840628648,11.6,185.7,185.69,0.2]
[1761840629349,11.74216157,185.7,185.69,0.2]
[1761840629553,17.12719118,185.7,185.69,0.2]
[1761840629725,11.6,185.7,185.69,0.2]
[1761840630040,11.6,185.7,185.69,0.91]
[1761840630554,17.11916641,185.7,185.69,0.2]
[1761840631135,11.6,185.7,185.69,0.2]
[1761840632554,25.68004504,185.7,185.69,0.2]
[1761840633229,35.56887273,185.7,185.69,0.2]
[1761840633432,35.46887273,185.7,185.69,0.2]
[1761840634353,0.1,185.76,185.69,0.2]
[1761840634559,11.6,185.75,185.69,0.2]
[1761840634730,11.6,185.74,185.7,9.12069229]
[1761840635240,11.6,185.74,185.71,0.71]
[1761840635443,20.01069229,185.74,185.71,0.71]
[1761840635960,20.01069229,185.74,185.69,0.2]
[1761840635961,8.41069229,185.72,185.69,0.2]
[1761840636253,11.6,185.71,185.69,0.2]
[1761840636760,8.41069229,185.7,185.69,0.2]
[1761840637133,20.01069229,185.71,185.69,0.2]
[1761840637454,11.6,185.71,185.69,0.91]
[1761840638348,8.41069229,185.72,185.7,0.71]
[1761840638548,11.58,185.71,185.7,0.71]
[1761840638860,13.79486822,185.73,185.7,0.71]
[1761840639066,8.41069229,185.71,185.69,0.2]
[1761840639270,11.58,185.72,185.69,0.2]
[1761840639271,8.41069229,185.7,185.69,0.2]
[1761840639634,8.69501543,185.7,185.69,0.2]
[1761840640231,14.08004504,185.7,185.69,0.2]
[1761840640764,23.96887273,185.7,185.69,0.2]
[1761840640948,10.07315083,185.69,185.67,0.2]
[1761840641150,8.41069229,185.62,185.58,0.86]
[1761840641345,11.58,185.61,185.59,0.66]
[1761840642235,8.41069229,185.6,185.58,0.2]
[1761840642861,16.96768898,185.61,185.58,0.2]
[1761840642862,8.41069229,185.59,185.58,0.2]
[1761840643053,8.69501543,185.59,185.58,0.2]
[1761840644070,18.58384312,185.59,185.58,1e-08]
[1761840644367,23.97206446,185.59,185.58,1e-08]
[1761840645672,35.45206446,185.59,185.58,1e-08]
[1761840645872,23.87206446,185.59,185.58,1e-08]
[1761840646177,35.45206446,185.59,185.58,1e-08]
[1761840647439,19.99069229,185.59,185.58,1e-08]
[1761840647759,11.58,185.59,185.58,0.66000001]
[1761840648169,11.58,185.59,185.58,1e-08]
[1761840648541,11.58,185.59,185.58,0.66000001]
[1761840649140,8.41069229,185.61,185.58,0.66000001]
[1761840649337,13.79857409,185.61,185.58,0.66000001]
[1761840649766,8.41069229,185.59,185.58,1e-08]
[1761840650068,8.69501543,185.59,185.58,1e-08]
[1761840650576,5.3873505,185.62,185.58,0.66000001]
[1761840650870,13.79804279,185.62,185.58,0.66000001]
[1761840651254,8.41069229,185.61,185.58,0.66000001]
[1761840651437,13.79804279,185.62,185.58,0.66000001]
[1761840651643,5.38793103,185.6,185.58,0.66000001]
[1761840653259,13.79862332,185.6,185.58,0.66000001]
[1761840653564,13.79835329,185.61,185.58,0.66000001]
[1761840653754,13.79809746,185.62,185.58,0.66000001]
[1761840654473,8.41069229,185.61,185.58,0.66000001]
[1761840654654,8.41069229,185.6,185.58,1e-08]
[1761840654855,8.41069229,185.6,185.59,0.66]
[1761840655154,13.79862332,185.6,185.59,0.66]
[1761840655991,9.78882769,185.65,185.59,0.66]
[1761840656281,8.41069229,185.61,185.59,0.66]
[1761840656481,8.41069229,185.6,185.58,1e-08]
[1761840656869,8.41069229,185.6,185.58,0.66000001]
[1761840657069,8.41069229,185.6,185.58,1e-08]
[1761840657273,13.79891363,185.59,185.58,1e-08]
[1761840658070,14.08323677,185.59,185.58,1e-08]
[1761840658787,23.97206446,185.59,185.58,1e-08]
[1761840658985,27.92165252,185.59,185.58,1e-08]
[1761840660986,27.82165252,185.59,185.58,1e-08]
[1761840661188,32.95228035,185.59,185.58,1e-08]
[1761840661373,48.12932938,185.59,185.58,1e-08]
[1761840661581,48.41365252,185.59,185.58,1e-08]
[1761840662480,34.61473889,185.59,185.58,1e-08]
[1761840662686,48.41365252,185.59,185.58,1e-08]
[1761840662880,59.99365252,185.59,185.58,1e-08]
[1761840663565,60.09365252,185.59,185.58,1e-08]
[1761840663959,59.99365252,185.59,185.58,1e-08]
[1761840664175,60.09365252,185.59,185.58,1e-08]
[1761840664566,59.99365252,185.59,185.58,1e-08]
[1761840665194,60.09365252,185.59,185.58,1e-08]
[1761840665765,63.66032153,185.59,185.58,1e-08]
[1761840665982,8.41069229,185.51,185.5,0.86]
[1761840666169,19.99069229,185.51,185.5,0.86]
[1761840666886,11.58,185.51,185.5,0.86]
[1761840667081,19.99069229,185.51,185.5,0.86]
[1761840667294,11.58,185.51,185.5,0.86]
[1761840667612,8.41069229,185.56,185.5,28.13853999]
[1761840667810,8.41069229,185.6,185.54,8.41069229]
[1761840668091,8.41069229,185.63,185.57,8.41069229]
[1761840668292,8.41069229,185.63,185.58,8.41069229]
[1761840668293,11.58,185.63,185.58,8.41069229]
[1761840668493,8.41069229,185.62,185.56,21.252]
[1761840668792,8.41069229,185.62,185.5,96.30634873]
[1761840668793,8.41069229,185.58,185.57,0.66]
[1761840668985,19.99069229,185.58,185.55,0.66]
[1761840669168,8.41069229,185.56,185.55,0.66]
[1761840669491,13.79978476,185.56,185.55,0.66]
[1761840669668,8.41069229,185.56,185.55,0.66]
[1761840669866,8.86339829,185.71,185.55,0.66]
[1761840670067,36.67488577,185.76,185.55,6.04928044]
[1761840670068,20.9326216,185.67,185.55,6.04928044]
[1761840670371,20.9326216,185.67,185.56,0.68]
[1761840670372,8.41069229,185.62,185.56,0.68]
[1761840670565,19.99069229,185.62,185.57,8.41069229]
[1761840670764,19.99069229,185.62,185.58,0.68]
[1761840670968,19.99069229,185.62,185.56,8.41069229]
[1761840670969,8.41069229,185.59,185.56,0.68]
[1761840671185,0.28432314,185.64,185.57,0.68]
[1761840671502,8.41069229,185.61,185.57,0.68]
[1761840671794,11.56,185.6,185.57,0.68]
[1761840672195,19.97069229,185.6,185.57,0.68]
[1761840672574,8.41069229,185.58,185.57,0.68]
[1761840672766,0.28432314,185.57,185.53,0.68]
[1761840672971,8.41069229,185.55,185.53,0.68]
[1761840673197,11.56,185.56,185.53,0.68]
[1761840673972,0.28432314,185.6,185.54,8.41069229]
[1761840674176,5.38647993,185.65,185.57,8.41069229]
[1761840674395,19.97069229,185.64,185.58,9.09069229]
[1761840674595,19.97069229,185.64,185.59,0.68]
[1761840674782,11.56,185.64,185.6,8.41069229]
[1761840674977,11.56,185.64,185.59,9.09069229]
[1761840675289,11.56,185.64,185.6,8.41069229]
[1761840675491,11.56,185.64,185.54,21.34882769]
[1761840675492,25.35747832,185.64,185.61,0.72]
[1761840675699,8.41069229,185.62,185.57,8.41069229]
[1761840676000,8.41069229,185.63,185.58,8.41069229]
[1761840676181,8.41069229,185.63,185.59,0.72]
[1761840676812,9.78882769,185.67,185.62,8.41069229]
[1761840677010,5.38444778,185.73,185.59,32.872]
[1761840677182,8.41069229,185.71,185.66,8.41069229]
[1761840677499,8.41069229,185.69,185.64,8.41069229]
[1761840677699,11.56,185.69,185.64,8.41069229]
[1761840678000,11.56,185.69,185.65,9.13069229]
[1761840678398,11.56,185.69,185.66,0.72]
[1761840679602,16.94550984,185.69,185.66,0.72]
[1761840680386,11.56,185.69,185.66,0.72]
[1761840680618,2.81380171,185.73,185.68,8.41069229]
[1761840680920,11.56,185.74,185.7,8.41069229]
[1761840681210,11.56,185.74,185.71,9.13069229]
[1761840681607,11.56,185.74,185.72,0.72]
[1761840682220,16.94392194,185.74,185.72,0.72]
[1761840682804,11.56,185.76,185.73,8.41069229]
[1761840683189,11.56,185.76,185.74,0.72]
[1761840684130,5.48246887,185.79,185.75,8.41069229]
[1761840684131,0.1,185.79,185.75,8.41069229]
[1761840684287,0.1,185.79,185.78,8.41069229]
[1761840684492,0.1,185.82,185.78,9.13069229]
[1761840684799,0.1,185.82,185.81,8.41069229]
[1761840685016,13.44626064,185.93,185.82,20.592]
[1761840685190,8.41069229,185.91,185.85,8.41069229]
[1761840685387,8.41069229,185.91,185.83,0.72]
[1761840685611,8.41069229,185.89,185.83,0.72]
[1761840685924,8.41069229,185.88,185.83,9.13069229]
[1761840686221,8.41069229,185.88,185.82,25.9735235]
[1761840686222,8.41069229,185.86,185.82,20.592]
[1761840686384,11.56,185.89,185.83,9.13069229]
[1761840686587,2.81061435,185.94,185.88,8.41069229]
[1761840686838,8.41069229,185.92,185.86,20.592]
[1761840687114,8.41069229,185.93,185.87,9.13069229]
[1761840687317,8.41069229,185.93,185.88,9.13069229]
[1761840687495,16.93787443,185.95,185.88,9.13069229]
[1761840687701,8.41069229,185.94,185.89,0.72]
[1761840688302,25.34856672,185.95,185.9,8.41069229]
[1761840688500,25.34856672,185.95,185.89,0.72]
[1761840688501,8.41069229,185.94,185.89,0.72]
[1761840688833,8.41069229,185.94,185.88,8.41069229]
[1761840688834,8.41069229,185.9,185.85,0.72]
[1761840689119,8.41069229,185.89,185.85,0.72]
[1761840689710,11.54,185.9,185.85,0.72]
[1761840689711,19.95069229,185.9,185.85,0.72]
[1761840689905,16.91949966,185.9,185.85,9.13069229]
[1761840690094,16.91949966,185.9,185.85,0.72]
[1761840690095,8.41069229,185.89,185.85,0.72]
[1761840690300,8.41069229,185.89,185.84,8.41069229]
[1761840690519,8.41069229,185.88,185.83,20.592]
[1761840690719,11.54,185.89,185.81,0.72]
[1761840690720,8.41069229,185.86,185.81,0.72]
[1761840690906,11.54,185.85,185.75,9.78882769]
[1761840691119,11.54,185.85,185.82,0.72]
[1761840691496,20.592,185.91,185.82,0.72]
[1761840691497,7.80788528,185.95,185.87,20.592]
[1761840691721,8.41069229,185.92,185.87,21.312]
[1761840691908,8.41069229,185.93,185.87,29.72269229]
[1761840692229,8.41069229,185.9,185.85,8.41069229]
[1761840692406,8.41069229,185.9,185.84,29.72269229]
[1761840692606,11.54,185.91,185.85,8.41069229]
[1761840692813,11.54,185.92,185.87,8.41069229]
[1761840693235,19.95069229,185.92,185.88,0.72]
[1761840693419,17.06264112,185.92,185.88,0.72]
[1761840693624,5.3789468,185.91,185.85,26.83464112]
[1761840693842,5.52264112,185.88,185.83,0.72]
[1761840694013,17.06264112,185.88,185.83,0.72]
[1761840694214,11.54,185.88,185.83,6.24264112]
[1761840694419,17.06264112,185.91,185.85,5.52264112]
[1761840694715,22.44158792,185.91,185.86,0.72]
[1761840695023,5.52264112,185.9,185.86,0.72]
[1761840695239,16.9189468,185.91,185.86,0.72]
[1761840695549,5.52264112,185.96,185.9,5.52264112]
[1761840695767,5.52264112,185.96,185.82,130.53543212]
[1761840695768,5.52264112,185.91,185.83,12.26]
[1761840695916,5.52264112,185.88,185.84,0.72]
[1761840696117,17.06264112,185.88,185.84,0.72]
[1761840696455,11.54,185.88,185.84,0.72]
[1761840696630,11.54,185.88,185.84,6.24264112]
[1761840696836,2.81032809,185.93,185.87,5.52264112]
[1761840697050,16.91765978,185.96,185.91,5.52264112]
[1761840697213,11.54,185.96,185.92,0.72]
[1761840697412,11.54,185.97,185.92,6.24264112]
[1761840697617,11.54,185.97,185.93,5.52264112]
[1761840697847,11.54,185.97,185.93,0.72]
[1761840698057,17.06264112,185.97,185.93,0.72]
[1761840698565,11.54,185.97,185.9,5.52264112]
[1761840698855,11.54,185.97,185.92,5.52264112]
[1761840699146,10.89899076,186.0,185.92,20.592]
[1761840699349,5.52264112,185.96,185.92,0.68]
[1761840699519,5.52264112,185.95,185.9,21.272]
[1761840699839,5.52264112,185.95,185.89,5.52264112]
[1761840699840,5.52264112,185.93,185.89,0.68]
[1761840700038,5.37807895,185.94,185.89,0.68]
[1761840700217,0.28432314,185.95,185.89,6.20264112]
[1761840700418,0.28432314,185.98,185.89,6.20264112]
[1761840700419,0.28432314,185.98,185.91,5.52264112]
[1761840700637,11.54,185.95,185.91,5.52264112]
[1761840700835,11.54,185.95,185.92,6.20264112]
[1761840701034,11.54,185.95,185.92,0.68]
[1761840701231,11.54,185.95,185.9,5.52264112]
[1761840701232,17.06264112,185.95,185.9,0.68]
[1761840701524,17.06264112,185.95,185.87,5.37981928]
[1761840701525,11.54,185.95,185.91,6.20264112]
[1761840701834,5.37778505,185.96,185.91,6.20264112]
[1761840702038,2.80936842,186.03,185.95,5.52264112]
[1761840702347,5.52264112,186.11,186.02,5.52264112]
[1761840702520,5.52264112,186.11,185.99,20.592]
[1761840702521,11.54,186.1,186.06,5.52264112]
[1761840702722,0.1,186.12,186.08,5.52264112]
[1761840703044,0.1,186.12,186.09,6.20264112]
[1761840703239,0.1,186.12,186.09,5.52264112]
[1761840703435,0.1,186.12,186.09,6.20264112]
[1761840703736,0.1,186.12,186.1,6.20264112]
[1761840703938,5.47300657,186.12,186.1,5.52264112]
[1761840704129,5.47300657,186.12,186.09,5.52264112]
[1761840704328,5.47300657,186.12,186.07,0.68]
[1761840704743,5.52264112,186.11,186.02,32.112]
[1761840704922,19.20520085,186.12,186.05,5.52264112]
[1761840704923,5.52264112,186.1,186.05,5.52264112]
[1761840705117,11.52,186.09,186.05,5.52264112]
[1761840705327,11.52,186.09,186.05,6.20264112]
[1761840705534,0.28432314,186.08,186.03,5.52264112]
[1761840705741,5.80696426,186.08,186.02,5.52264112]
[1761840706032,5.80696426,186.08,186.01,0.68]
[1761840706033,11.52,186.09,186.03,6.20264112]
[1761840706243,11.52,186.09,186.06,5.52264112]
[1761840706445,11.52,186.09,186.03,0.68]
[1761840706446,11.52,186.1,186.04,0.68]
[1761840706639,11.52,186.1,186.05,5.52264112]
[1761840706862,11.52,186.1,186.04,0.68]
[1761840707037,11.52,186.1,186.06,5.52264112]
[1761840707539,11.52,186.1,186.07,0.68]
[1761840707932,0.1,186.12,186.07,6.05428649]
[1761840708140,0.1,186.12,186.08,5.52264112]
[1761840708343,0.1,186.12,186.08,6.20264112]
[1761840708677,5.47302898,186.12,186.08,6.20264112]
[1761840708967,5.47302898,186.12,186.08,0.68]
[1761840709140,10.9956701,186.12,186.08,0.68]
[1761840709343,10.9956701,186.12,186.04,26.6471742]
[1761840709568,5.52264112,186.11,186.06,5.52264112]
[1761840709955,5.52264112,186.11,186.07,0.68]
[1761840710163,0.38432314,186.12,186.07,6.20264112]
[1761840710365,5.47314321,186.12,186.07,0.68]
[1761840710666,5.52264112,186.11,186.04,20.592]
[1761840710850,5.52264112,186.1,186.05,5.52264112]
[1761840711041,18.90533749,186.12,186.06,5.52264112]
[1761840711239,16.99314321,186.12,186.07,5.52264112]
[1761840711457,0.1,186.12,186.09,5.52264112]
[1761840711662,5.47295314,186.12,186.09,6.20264112]
[1761840712645,5.47295314,186.12,186.09,0.68]
[1761840713967,5.47295314,186.12,186.09,6.20264112]
[1761840714168,5.47295314,186.12,186.09,0.68]
[1761840714391,0.1,186.12,186.1,0.68]
[1761840714746,0.1,186.12,186.08,5.52264112]
[1761840714942,5.47291962,186.12,186.08,6.20264112]
[1761840715166,0.1,186.12,186.09,0.68]
[1761840715775,0.1,186.12,186.06,0.68]
[1761840715954,5.47288349,186.12,186.07,5.52264112]
[1761840716155,5.47288349,186.12,186.06,0.68]
[1761840716156,10.99552461,186.12,186.05,0.68]
[1761840716351,0.1,186.13,186.11,5.52264112]
[1761840716549,0.1,186.13,186.06,1.21746103]
[1761840716550,0.1,186.13,186.12,5.52264112]
[1761840716751,0.1,186.13,186.12,0.68]
[1761840717081,0.1,186.13,186.09,21.272]
[1761840717374,0.1,186.13,186.1,6.20264112]
[1761840717748,0.1,186.13,186.07,11.52]
[1761840717749,5.47274045,186.13,186.08,5.52264112]
[1761840717950,10.99538157,186.13,186.07,21.272]
[1761840718265,10.99538157,186.13,186.07,26.79464112]
[1761840719754,10.99538157,186.13,186.07,21.272]
[1761840719950,10.99538157,186.13,186.07,26.79464112]
[1761840720179,5.52264112,186.12,186.07,0.68]
[1761840720371,4.06807987,186.1,186.04,6.20264112]
[1761840720554,5.52264112,186.09,186.04,0.68]
[1761840720749,11.52,186.11,186.05,6.20264112]
[1761840720980,11.52,186.11,186.05,0.68]
[1761840721179,17.04264112,186.11,186.06,5.52264112]
[1761840721378,17.04264112,186.11,186.05,6.20264112]
[1761840722061,11.52,186.11,186.05,6.20264112]
[1761840722261,17.04264112,186.11,186.05,6.20264112]
[1761840722565,17.04264112,186.11,186.01,0.68]
[1761840722566,5.52264112,186.06,186.01,0.68]
[1761840722765,5.52264112,186.02,185.94,9.78882769]
[1761840723082,5.52264112,185.95,185.92,0.68]
[1761840723287,17.04264112,186.01,185.92,0.68]
[1761840723288,5.52264112,185.94,185.92,0.68]
[1761840723452,5.52264112,185.93,185.89,0.68]
[1761840723653,5.52264112,185.92,185.89,0.68]
[1761840723857,5.52264112,185.93,185.89,0.68]
[1761840724055,5.52264112,185.94,185.89,0.68]
[1761840724269,5.52264112,185.94,185.89,6.20264112]
[1761840724490,5.52264112,185.94,185.89,11.58204849]
[1761840724672,16.87795358,185.95,185.9,0.68]
[1761840724869,5.37692224,185.98,185.9,0.68]
[1761840725191,5.52264112,185.94,185.9,0.68]
[1761840725376,5.52264112,185.93,185.9,0.68]
[1761840725563,5.52264112,185.91,185.88,20.592]
[1761840725884,5.52264112,185.91,185.88,0.68]
[1761840726195,5.52264112,185.9,185.86,0.68]
[1761840726488,5.52264112,185.91,185.87,5.38010437]
[1761840726783,5.52264112,185.91,185.86,11.58295919]
[1761840726988,5.52264112,185.91,185.87,0.68]
[1761840727164,5.52264112,185.92,185.87,0.68]
[1761840727484,17.04264112,185.92,185.87,0.68]
[1761840727705,11.52,185.92,185.87,0.68]
[1761840727876,17.04264112,185.92,185.87,0.68]
[1761840728575,22.42141005,185.92,185.87,0.68]
[1761840728777,17.04264112,185.92,185.87,6.06007281]
[1761840728998,22.42134753,185.92,185.87,0.68]
[1761840729460,17.04264112,185.92,185.86,5.52264112]
[1761840729870,11.52,185.92,185.87,5.52264112]
[1761840730263,11.52,185.92,185.87,6.20264112]
[1761840730490,11.52,185.95,185.91,5.52264112]
[1761840730697,11.52,185.95,185.87,5.52264112]
[1761840730698,5.52264112,185.93,185.87,5.52264112]
[1761840730891,5.52264112,185.9,185.84,5.52264112]
[1761840731095,17.04264112,185.9,185.84,5.52264112]
[1761840731280,5.52264112,185.9,185.85,5.52264112]
[1761840731484,11.80432314,185.9,185.85,6.20264112]
[1761840731680,18.82241062,185.95,185.87,5.52264112]
[1761840731880,21.01344753,185.94,185.88,5.52264112]
[1761840732085,17.04264112,185.94,185.88,5.52264112]
[1761840732274,11.52,185.94,185.89,5.52264112]
[1761840732675,22.42098277,185.94,185.89,0.68]
[1761840732879,16.89834165,185.94,185.89,6.20264112]
[1761840733491,5.52264112,185.9,185.86,0.68]
[1761840733695,11.52,185.9,185.86,5.52264112]
[1761840733874,11.52,185.9,185.87,0.68]
[1761840734079,11.52,185.91,185.87,6.20264112]
[1761840734277,11.52,185.92,185.89,5.52264112]
[1761840734587,11.52,185.92,185.9,5.52264112]
[1761840735101,11.52,185.96,185.91,6.20264112]
[1761840735298,11.52,185.96,185.93,5.52264112]
[1761840735487,11.52,185.96,185.92,0.71]